Cogmind - Beta 15 @@@ ROGUE MODE // 2025.07.14 @ 20:02:12 Player: winnking222 Result: Self-destructed Performance ------------- Evolutions (5) 2500 Regions Visited (11) 2200 Robots Destroyed (193) 965 Value Destroyed (7793) 7793 Prototype IDs (38) 760 Alien Tech Used (0) 0 Bonus (5678) 5678 TOTAL SCORE: 19896 Bonus ------- High Alert Combat Kills 1712 Follower Combat Kills 2636 Network Hubs Disabled 200 Registered with UFD 300 Met Optimus in HQ 500 Built Enhanced Grunts 300 A7 Reached Mainframe 300 Met R17 at Cetus 500 Friendly Fire -770 Cogmind --------- Core Integrity 299/1000 Matter 291/300 Energy 200/200 System Corruption 18% Temperature Warm (159) Movement Walking (112) Location -5/Factory Parts ------- > --- POWER (1) -------- Cold Fusion Reactor > --- PROPULSION (4) --- Armored Leg Improved VSS Leg Enhanced Armored Leg Enhanced Armored Leg > --- UTILITY (8) ------ High-capacity Storage Unit Advanced Targeting Computer > --- WEAPON (4) ------- Advanced Variable Charge Gun Coil Gun > --- INVENTORY (20) --- Reinforced Fission Core Armored Leg Thunder Leg Enhanced Flexi-carbon Leg Hardened Medium Armor Plating Gamma Rifle Advanced Variable Charge Gun Advanced Variable Charge Gun Hypervelocity Gauss Rifle Hypervelocity Gauss Rifle Hypervelocity Gauss Rifle KE Penetrator Hypervelocity Gauss Cannon Tiamat Missile Launcher Advanced Remote Datajack Improved Plasma Cutter CPS Tube (2) Power Sword Vortex Trap Peak State ------------ > --- POWER ------------ Cold Fusion Reactor > --- PROPULSION ------- Thunder Leg Enhanced Armored Leg Enhanced Armored Leg Enhanced Armored Leg > --- UTILITY ---------- Advanced Heat Sink Advanced Heat Sink Advanced Cooling System High-capacity Storage Unit Advanced Targeting Computer Layered Heavy Armor Plating Centrium Medium Armor Plating > --- WEAPON ----------- Advanced Variable Charge Gun Advanced Variable Charge Gun KE Penetrator KE Penetrator > --- INVENTORY -------- Cold Fusion Reactor Reinforced Fission Core Armored Leg Armored Leg Improved VSS Leg Phase Shifter Wave Gun Advanced Variable Charge Gun Hypervelocity Gauss Rifle KE Penetrator Hypervelocity Gauss Cannon Tiamat Missile Launcher Tiamat Missile Launcher Advanced Remote Datajack Improved Plasma Cutter CPS Tube Power Sword Proton Bomb Trap Vortex Trap Vortex Trap [Rating: 112] Favorites ----------- Power Light Nuclear Core Engine Improved Deuterium Engine Power Core Light Nuclear Core Reactor Cold Fusion Reactor Propulsion Spiked Treads Treads Spiked Treads Leg Enhanced Armored Leg Wheel Wheel Utility High-capacity Storage Unit Device Advanced Heat Sink Storage High-capacity Storage Unit Processor Advanced Targeting Computer Protection Centrium Medium Armor Plating Weapon Heavy Battle Rifle Energy Gun Advanced Variable Charge Gun Energy Cannon Subdweller Beam Cannon Ballistic Gun Heavy Battle Rifle Ballistic Cannon Battle Cannon Launcher Rocket Launcher Special Weapon CPS Tube Slashing Weapon Power Sword Build | -11 -10 -10 -10 -9 -9 -6 -6 -6 -6 -6 -5 ------- Run | Yrd Mat Min Sub Rec Scr Fac Ext Cet Arc Hub Fac Slots Evolved 10 | . . . . . . 8 . . . . 2 Power . | . . . . . . . . . . . . Propulsion 2 | . . . . . . 2 . . . . . Utility 6 | . . . . . . 5 . . . . 1 Weapon 2 | . . . . . . 1 . . . . 1 Parts Attached 146 | 7 1 3 18 . 6 33 9 9 3 3 54 Power 14 | 1 . . 3 . . 2 1 1 . . 6 Engine 7 | 1 . . 2 . . 1 1 . . . 2 Core 2 | . . . 1 . . . . . . . 1 Reactor 5 | . . . . . . 1 . 1 . . 3 Propulsion 29 | 2 . . 4 . 4 7 3 . . . 9 Treads 6 | 2 . . 4 . . . . . . . . Leg 21 | . . . . . 2 7 3 . . . 9 Wheel 2 | . . . . . 2 . . . . . . Hover . | . . . . . . . . . . . . Flight . | . . . . . . . . . . . . Utility 45 | 2 . 2 2 . 2 12 2 5 . 1 17 Device 23 | 1 . 1 1 . 1 6 1 2 . . 10 Storage 6 | 1 . 1 . . 1 . . . . 1 2 Processor 3 | . . . . . . 3 . . . . . Hackware . | . . . . . . . . . . . . Protection 13 | . . . 1 . . 3 1 3 . . 5 Artifact . | . . . . . . . . . . . . Weapon 58 | 2 1 1 9 . . 12 3 3 3 2 22 Energy Gun 12 | . . . . . . 3 . . 1 1 7 Energy Cannon 5 | . . . 1 . . 1 1 . 1 . 1 Ballistic Gun 33 | 2 1 1 4 . . 7 1 3 1 1 12 Ballistic Cannon 3 | . . . 3 . . . . . . . . Launcher 2 | . . . 1 . . . . . . . 1 Special Weapon 2 | . . . . . . . 1 . . . 1 Impact Weapon . | . . . . . . . . . . . . Slashing Weapon 1 | . . . . . . 1 . . . . . Piercing Weapon . | . . . . . . . . . . . . Special Melee Weapon . | . . . . . . . . . . . . Unidentified Prototypes 20 | . . . 1 . . 7 1 2 2 1 6 Corrupted Parts 4 | . . . . . . . . 1 1 . 2 System Corruption 16 | . . . . . . . . 3 8 . 5 Parts Lost 37 | . 1 . 2 . . 6 6 2 . 9 11 Power 2 | . . . . . . . 1 . . 1 . Propulsion 6 | . . . 2 . . 2 2 . . . . Utility 13 | . 1 . . . . 1 2 . . 4 5 Weapon 16 | . . . . . . 3 1 2 . 4 6 Highest Loss Streak 9 | . 1 . 1 . . 2 1 1 . 9 3 To Critical Strikes 1 | . . . . . . . . 1 . . . Average Backups 13 | 3 6 6 14 14 12 13 10 14 15 14 16 Power . | . 1 2 . . . 1 . . . . 1 Propulsion 2 | 1 2 1 2 3 2 1 2 4 4 4 3 Utility 3 | . 1 1 5 6 6 3 1 1 2 2 . Weapon 4 | . . 2 5 5 2 4 4 6 7 7 8 Tool/Special . | . . . . . . . . . . . . Unused Backups 41 | . 4 . 3 . 6 10 . 4 1 . 13 Power 7 | . . . 1 . . 2 . 2 . . 2 Propulsion 9 | . 4 . . . 1 1 . 1 . . 2 Utility 8 | . . . 1 . 2 4 . . . . 1 Weapon 13 | . . . 1 . 3 1 . 1 1 . 6 Tool/Special 4 | . . . . . . 2 . . . . 2 Average Slot Usage (%) 89 | . 98 100 99 100 83 74 80 86 86 84 89 Engine 3 | . 14 14 7 . . 4 5 6 6 5 . Core 6 | . . . 6 14 14 . . . . . . Treads 15 | . 28 28 27 28 20 . . . . . . Leg 8 | . . . . . 6 20 13 13 13 13 21 Device 11 | . 12 14 11 14 4 12 15 20 20 19 16 Storage 10 | . 14 14 14 14 14 5 5 6 6 6 5 Processor 3 | . . . . . . 8 12 13 13 13 5 Protection 2 | . . . 2 . . 3 4 6 6 5 10 Energy Gun 1 | . . . . . . 2 9 1 . . 7 Ballistic Gun 17 | . 28 28 12 18 22 13 8 18 19 19 11 Ballistic Cannon 3 | . . . 13 9 . . . . . . . Peak Build Rating 112 | 7 8 8 22 22 23 84 82 92 90 90 112 Average Rating 42 | 6 7 7 16 21 20 73 70 84 89 87 99 On Entrance 38 | . 7 6 8 22 22 21 82 72 89 89 42 Naked Turns . | . . . . . . . . . . . . Heaviest Build 217 | 14 14 50 58 54 213 217 72 77 80 77 107 Greatest Support 116 | 40 40 40 40 40 40 116 101 72 72 72 88 Greatest Overweight (x) 20 | . . 1 2 1 20 3 . 1 1 1 3 Average Overweight (x) . | . . . 1 1 1 . . . 1 . . Largest Inventory Capacity 35 | 8 8 20 20 20 35 35 20 20 20 20 20 Average Capacity 20 | 7 8 17 20 20 22 20 20 20 20 20 20 Most Carried 28 | 5 8 11 20 20 28 27 20 20 20 20 20 Average Carried 18 | 3 6 8 19 20 19 18 15 19 19 19 19 Final Capacity 35 | 8 8 20 20 20 35 20 20 20 20 20 20 Final Carried 27 | 4 6 11 20 20 27 20 18 20 20 18 19 Class Distribution -------------------- 47% | Derelict-Mutant 12% | Scavenger-Gunner 11% | Mutant 8% | Scavenger-Tank 6% | Commander-Gunner 5% | Hauler-Mutant 4% | Gunner Dominant Class ---------------- Mutant | -10/Materials Mutant | -10/Mines Derelict-Mutant | -10/Subcaves Derelict-Mutant | -9/Recycling Derelict-Mutant | -9/Scraptown Scavenger-Gunner | -6/Factory Commander-Gunner | -6/Extension Commander-Gunner | -6/Cetus Scavenger-Gunner | -6/Archives Scavenger-Gunner | -6/Hub_04(d) Scavenger-Tank | -5/Factory Resources | -11 -10 -10 -10 -9 -9 -6 -6 -6 -6 -6 -5 ----------- Run | Yrd Mat Min Sub Rec Scr Fac Ext Cet Arc Hub Fac Matter Collected 7220 | 319 370 49 1048 279 40 1356 449 538 134 308 2330 Remotely . | . . . . . . . . . . . . Salvage Created 8927 | 150 442 . 194 69 . 2229 995 622 61 551 3614 Parts 462 | 16 32 . 21 6 . 105 41 22 3 31 185 Haulers Intercepted 9 | . . . . . . 2 . . . 2 5 Recyclers Shooed 5 | . . . . . . . 1 . . . 4 Parts Field Recycled . | . . . . . . . . . . . . Retrieved Matter . | . . . . . . . . . . . . Parts Self-Destructed 15 | . . . 15 . . . . . . . . Prevented . | . . . . . . . . . . . . Kills | -11 -10 -10 -10 -9 -9 -6 -6 -6 -6 -6 -5 ------- Run | Yrd Mat Min Sub Rec Scr Fac Ext Cet Arc Hub Fac Combat Hostiles Destroyed 145 | . 9 . 10 . . 38 16 8 1 7 56 Guns 133 | . 9 . 7 . . 37 11 8 1 7 53 Cannons 3 | . . . 3 . . . . . . . . AOE 7 | . . . . . . 1 3 . . . 3 Classes Destroyed 20 | 2 3 . 2 . . 9 . . . . 4 Worker 13 | . . . . . . 4 1 . . 1 7 Builder 7 | . 1 . . 1 . . . . . 1 4 Tunneler 4 | 4 . . . . . . . . . . . Hauler 9 | . . . . . . 2 . . . 2 5 Recycler 3 | 1 . . . 1 . . . . . . 1 Mechanic 1 | . . . . . . . . . . . 1 Watcher 7 | . 1 . . . . 1 1 1 . 1 2 Swarmer 35 | . . . 4 . . 9 3 1 . 4 14 Grunt 51 | . 9 . . . . 16 7 4 . 1 14 Brawler 2 | . . . . . . . . . . . 2 Duelist 2 | . . . . . . . . . . . 2 Protector 1 | . . . . . . . . . . . 1 Sentry 11 | . . . . . . 3 1 . 1 . 6 Specialist 2 | . . . . . . 2 . . . . . Hunter 3 | . . . . . . 1 2 . . . . Programmer 24 | . . . . . . 5 . . . 2 17 Heavy 1 | . . . . . . 1 . . . . . Behemoth 2 | . . . . . . 1 1 . . . . Cetus Guard 3 | . . . . . . . . 3 . . . Subdweller 6 | . . . 6 . . . . . . . . Scrapoid 1 | . . . . . . 1 . . . . . Thug 1 | . . . . . . . 1 . . . . Guerrilla 3 | . . . . . . . 1 2 . . . Best Kill Streak 12 | 2 3 . 4 1 . 11 4 3 1 5 12 Combat Bots Only 10 | . 2 . 4 . . 10 4 3 1 5 6 Max Kills in Single Turn 4 | 1 1 . 1 1 . 2 3 2 1 2 4 Gunslinging 1 | . . . . . . 1 1 . . 1 1 Exploded 3 | . . . . . . 1 3 . . . 3 Melee . | . . . . . . . . . . . . Uniques/NPCs Destroyed 1 | . . . . . . . . 1 . . . A7 (-6/Cetus) Combat | -11 -10 -10 -10 -9 -9 -6 -6 -6 -6 -6 -5 -------- Run | Yrd Mat Min Sub Rec Scr Fac Ext Cet Arc Hub Fac Hostile Shots Fired 1034 | . 55 . 69 . . 246 97 47 6 106 408 Missed 322 | . 15 . 20 . . 74 36 19 2 37 119 Hits 712 | . 40 . 49 . . 172 61 28 4 69 289 Melee 2 | . . . . . . . . . . . 2 Projectile 710 | . 40 . 49 . . 172 61 28 4 69 287 AOE 2 | . . . . . . . . . . . 2 Critical Strikes 35 | . . . 2 . . 5 2 8 1 6 11 Part Disruptions 1 | . . . . . . . . . . . 1 Damage Taken 12749 | . 497 . 654 . . 3024 676 579 120 1458 5741 Core 1579 | . 88 . 161 . . 348 40 97 19 125 701 Absorbed by Shields 548 | . . . . . . . 312 236 . . . Regen/Repaired (Parts) 307 | . . . . . . 106 81 . . . 120 Core Remaining (%) 42 | 100 . . . . . . . . . 26 . Volleys Fired 546 | 14 45 . 96 2 . 111 48 36 5 22 167 Largest 4 | 2 2 . 2 2 . 3 3 3 3 3 4 Hottest 387 | 40 40 . 63 66 . 120 140 113 158 103 387 Shots Fired 1429 | 28 90 . 136 4 . 327 135 102 17 62 528 Gun 1328 | 28 90 . 43 2 . 327 132 102 16 62 526 Cannon 87 | . . . 81 2 . . 3 . 1 . . Launcher 14 | . . . 12 . . . . . . . 2 Special . | . . . . . . . . . . . . Kinetic 1077 | 28 90 . 124 4 . 265 62 90 16 62 336 Thermal 170 | . . . . . . . 3 . 1 . 166 Explosive 14 | . . . 12 . . . . . . . 2 Electromagnetic 168 | . . . . . . 62 70 12 . . 24 Robot Hit Streak 24 | 9 19 . 13 12 . 17 23 24 6 7 19 Robot Miss Streak 10 | 2 3 . 2 . . 10 3 3 2 2 7 Penetration Max 2 | . . . . . . 1 1 2 1 1 1 Secondary Targets 36 | . 2 . 1 . . 10 3 5 . 2 13 Max Gunslinging Chain 1 | . 1 . 1 . . 1 1 1 . 1 1 Shots Hit Robots 907 | 18 58 . 41 4 . 221 99 82 12 41 331 Core Hits 399 | 7 27 . 17 1 . 93 37 43 2 22 150 Critical Kills 12 | . . . . . . 2 1 2 1 4 2 Critical Parts Destroyed 19 | . . . . . . 4 . 4 2 7 2 Critical Strikes 36 | . . . . 1 . 7 1 6 3 11 7 Burn 2 | . . . . . . . . . . . 2 Destroy 32 | . . . . . . 6 1 6 3 11 5 Blast 1 | . . . . 1 . . . . . . . Corrupt 1 | . . . . . . 1 . . . . . Melee Attacks 8 | . . . . . . 8 . . . . . Impact . | . . . . . . . . . . . . Slashing 8 | . . . . . . 8 . . . . . Piercing . | . . . . . . . . . . . . Sneak Attacks . | . . . . . . . . . . . . Combat Hostiles . | . . . . . . . . . . . . Follow-up Attacks . | . . . . . . . . . . . . Damage Inflicted 23991 | 189 621 11 749 101 . 5364 2227 2165 383 1278 10903 Guns 21790 | 189 621 . 361 45 . 4905 1952 2165 346 1278 9928 Cannons 478 | . . . 388 53 . . . . 37 . . Explosions 1623 | . . . . . . 447 261 . . . 915 Melee . | . . . . . . . . . . . . Ramming 100 | . . 11 . 3 . 12 14 . . . 60 Kinetic 15523 | 189 621 . 749 98 . 3874 864 1976 346 1278 5528 Thermal 4520 | . . . . . . . 261 . 37 . 4222 Explosive 1308 | . . . . . . 447 . . . . 861 Electromagnetic 2540 | . . . . . . 1031 1088 189 . . 232 Impact . | . . . . . . . . . . . . Slashing . | . . . . . . . . . . . . Piercing . | . . . . . . . . . . . . Highest Corruption 28 | . . . . . . 3 3 6 14 28 18 Average Corruption 5 | . . . . . . 1 3 5 12 18 6 Corruption Purged 9 | . . . . . . . . . . . 9 Corruption Blocked . | . . . . . . . . . . . . Effects 207 | . . . . . . 10 19 32 19 44 83 Message Errors 49 | . . . . . . 3 5 7 7 9 18 Matter Fused 45 | . . . . . . 2 4 5 2 13 19 Heat Flow Errors 24 | . . . . . . 2 1 4 4 . 13 Energy Discharges 20 | . . . . . . 2 3 8 2 2 3 Parts Rejected 4 | . . . . . . . . . 1 1 2 Data Loss (minor) 24 | . . . . . . 1 2 3 1 8 9 Data Loss (major) 10 | . . . . . . . . 2 . 1 7 Misfires 6 | . . . . . . . 1 1 2 1 1 Alerts 7 | . . . . . . . 3 1 . 1 2 Misdirections 4 | . . . . . . . . . . 3 1 Weapon Failures 14 | . . . . . . . . 1 . 5 8 Overload Shots 17 | . . . . . . . . . . . 17 Effects 2 | . . . . . . . . . . . 2 Heat Surge 2 | . . . . . . . . . . . 2 Overflow Damage 247 | . . . . . . 147 4 . 16 . 80 Projectiles 16 | . . . . . . . . . 16 . . Explosions 229 | . . . . . . 147 4 . . . 78 Melee 2 | . . . . . . . . . . . 2 Knockbacks 7 | . . . 5 . . . . . . . 2 Impact 2 | . . . . . . . . . . . 2 Kinetic 5 | . . . 5 . . . . . . . . Secondary . | . . . . . . . . . . . . Self-Inflicted Damage 110 | . . . 28 . . 82 . . . . . Shots 2 | . . . 1 . . 1 . . . . . Rammed 3 | . . 2 . 1 . . . . . . . Targets Rammed 16 | . . 2 . 2 . 3 2 . . . 7 Kicked 12 | . . . . . . 3 2 . . . 7 Crushed 1 | . . . . 1 . . . . . . . Highest Temperature 733 | . 15 . 229 12 . 393 128 79 35 . 733 Average Temperature 117 | . 7 . 131 8 . 124 42 47 35 . 194 Received Heat Transfer 2489 | . 276 . 359 . . 795 144 63 9 78 765 Effects 11 | . . . . . . 5 . . . . 6 Energy Bleed 1 | . . . . . . . . . . . 1 Interference 6 | . . . . . . 5 . . . . 1 Short Circuit 3 | . . . . . . . . . . . 3 Damage (core) 1 | . . . . . . . . . . . 1 Siege Activations . | . . . . . . . . . . . . Martial Activations 1 | . . . . . . . . . . . 1 Total Turns 5 | . . . . . . . . . . . 5 Longest Duration 5 | . . . . . . . . . . . 5 Shielding Activations . | . . . . . . . . . . . . Robots Disrupted 1 | . . . . . . . 1 . . . . Combat Hostiles 1 | . . . . . . . 1 . . . . Robots Corrupted 3 | . . . . . . . 2 . . . 1 Combat Hostiles 2 | . . . . . . . 2 . . . . Parts Fried 10 | . . . . . . 2 6 1 . . 1 Impact Corruptions 1 | . . . . . . . . . . . 1 Robots Melted . | . . . . . . . . . . . . Combat Hostiles . | . . . . . . . . . . . . Parts Melted 11 | . . . . . . 6 . 1 . . 4 Heat Transferred 5286 | . . . . . . . 200 . . . 5086 Parts Sabotaged . | . . . . . . . . . . . . Parts Stolen . | . . . . . . . . . . . . Parts Stripped . | . . . . . . . . . . . . Power Chain Reactions 2 | . . . . . . . 1 . . . 1 Alert | -11 -10 -10 -10 -9 -9 -6 -6 -6 -6 -6 -5 ------- Run | Yrd Mat Min Sub Rec Scr Fac Ext Cet Arc Hub Fac Maximum Alert Level 4 | . . . . . . 3 4 3 2 1 4 Low Security (%) 47 | 100 100 100 . 100 . 55 . . . 74 22 Level 1 13 | . . . . . . 5 17 . 42 25 28 Level 2 17 | . . . . . . 15 41 35 57 . 19 Level 3 18 | . . . . . . 23 23 64 . . 24 Level 4 3 | . . . . . . . 16 . . . 5 Level 5 . | . . . . . . . . . . . . High Security . | . . . . . . . . . . . . Max Security . | . . . . . . . . . . . . Peak Influence 1235 | 10 64 6 . 30 . 844 1235 1022 528 274 1213 Initial 677 | . . 6 . . . . 403 677 395 108 96 Average 348 | . 20 . . 2 . 311 670 737 419 151 516 Influence Increases 7191 | 25 252 . 188 134 . 1382 1406 1004 193 594 2013 Destroy 0b10 Robot/C 3960 | . 180 . 140 80 . 860 680 460 80 220 1260 Destroy 0b10 Robot/NC 265 | 25 10 . . 10 . 45 30 10 . 30 105 Destroy Leader 734 | . 42 . 10 . . 226 74 50 . 68 264 Allied During Kill 1339 | . . . 8 8 . 42 531 414 80 184 72 Trap Triggered on 0b10 20 | . . . . . . . . . . 10 10 Successful Hack 103 | . 5 . . 5 . 38 7 8 . 14 26 Select Force Hacks 30 | . . . . 30 . . . . . . . Disable Machine 285 | . . . . . . 60 45 15 30 45 90 Destroy Structure 260 | . . . . 1 . 36 39 32 3 23 126 Lose Combat Pursuer 195 | . 15 . 30 . . 75 . 15 . . 60 Influence Decreases 5985 | 25 236 16 188 134 . 557 1020 1226 872 706 1005 Entered New Map 1864 | . . 10 . . . . 422 534 594 202 102 Time Decay 3163 | 25 226 6 142 130 . 399 498 452 238 334 713 Lost Part 360 | . 10 . 10 . . 60 60 20 . 90 110 Lost Ally 598 | . . . 36 4 . 98 40 220 40 80 80 Squads Dispatched 60 | . 2 . . . . 20 1 2 . 4 31 Investigation 15 | . 1 . . . . 6 1 2 . . 5 Extermination 13 | . . . . . . 4 . . . 2 7 Reinforcement 15 | . 1 . . . . 6 . . . 2 6 Assault 2 | . . . . . . 1 . . . . 1 Garrison 15 | . . . . . . 3 . . . . 12 Intercept . | . . . . . . . . . . . . Searches Triggered . | . . . . . . . . . . . . Construction Impeded 4 | . . . . . . 1 . . . 1 2 Haulers Reinforced 4 | . . . . . . 1 . . . . 3 Active Scanning Responses . | . . . . . . . . . . . . Cargo Convoy Interrupts . | . . . . . . . . . . . . Stealth | -11 -10 -10 -10 -9 -9 -6 -6 -6 -6 -6 -5 --------- Run | Yrd Mat Min Sub Rec Scr Fac Ext Cet Arc Hub Fac Distress Signals 13 | . 1 . . 1 . 1 2 2 . 3 3 Communications Jammed . | . . . . . . . . . . . . Distress Signals . | . . . . . . . . . . . . Times Spotted 278 | . 17 . 21 2 . 55 34 22 11 24 92 Peak Tracking Total 12 | . 2 . 4 1 . 5 5 6 1 10 12 Tactical Retreats 9 | . 1 . 1 . . 4 . 1 . . 2 Traps | -11 -10 -10 -10 -9 -9 -6 -6 -6 -6 -6 -5 ------- Run | Yrd Mat Min Sub Rec Scr Fac Ext Cet Arc Hub Fac Traps Triggered 7 | . . . . . . 1 3 . . 1 2 Indirectly . | . . . . . . . . . . . . Trap Hack Attempts . | . . . . . . . . . . . . Triggered . | . . . . . . . . . . . . Disarmed . | . . . . . . . . . . . . Reprogrammed . | . . . . . . . . . . . . Reused 3 | . . . 1 . . . . . . 1 1 Traps Extracted . | . . . . . . . . . . . . Installed 3 | . . . 1 . . . . . . 1 1 Triggered 2 | . . . . . . . . . . 1 1 Most Traps Carried 6 | . . 3 3 3 6 4 4 4 4 4 3 Machines | -11 -10 -10 -10 -9 -9 -6 -6 -6 -6 -6 -5 ---------- Run | Yrd Mat Min Sub Rec Scr Fac Ext Cet Arc Hub Fac Machines Disabled 21 | . . . 1 . . 4 3 2 2 3 6 Max in Single Turn 3 | . . . 1 . . 3 1 1 1 1 1 Network Hub 1 | . . . . . . . . . . 1 . Energy Cycler 1 | . . . . . . . 1 . . . . Machines Repaired . | . . . . . . . . . . . . Machines Dismantled 3 | . . . . . . . 1 1 . 1 . Machines Sabotaged . | . . . . . . . . . . . . Overloaded Fab Kills . | . . . . . . . . . . . . Hacking | -11 -10 -10 -10 -9 -9 -6 -6 -6 -6 -6 -5 --------- Run | Yrd Mat Min Sub Rec Scr Fac Ext Cet Arc Hub Fac Machines Accessed 50 | . 3 1 2 2 8 13 3 3 1 3 11 Terminals 24 | . 3 1 . 1 . 8 3 3 . 3 2 Fabricators 4 | . . . . . . 1 . . . . 3 Repair Stations 1 | . . . . . . . . . . . 1 Recycling Units 8 | . . . . 1 . 3 . . . . 4 Scanalyzers 1 | . . . . . . . . . . . 1 Garrison Access 1 | . . . . . . 1 . . . . . Total Hacks 178 | . 6 2 13 3 57 28 5 7 25 3 29 Successful 136 | . 3 . 13 3 57 17 1 1 25 1 15 Failed 42 | . 3 2 . . . 11 4 6 . 2 14 Catastrophic 7 | . . . . . . 2 . 3 . 1 1 Database Lockouts . | . . . . . . . . . . . . Manual 25 | . . . . 1 . 12 . 2 . 2 8 Terminals 52 | . 6 2 . 2 . 20 5 7 . 3 7 Fabricators 10 | . . . . . . 2 . . . . 8 Repair Stations 2 | . . . . . . . . . . . 2 Recycling Units 14 | . . . . 1 . 3 . . . . 10 Scanalyzers 2 | . . . . . . . . . . . 2 Garrison Access 3 | . . . . . . 3 . . . . . Terminal Hacks 117 | . 3 . 13 2 57 12 1 1 25 1 2 Record 93 | . . . 12 . 51 3 . 1 25 . 1 Part Schematic 1 | . . . . . . . . . . . 1 Robot Analysis 6 | . 1 . . . 5 . . . . . . Prototype ID Bank 1 | . . . . . . 1 . . . . . Open Door 2 | . . . . . . 1 1 . . . . Level Access Points 1 | . . . . . . 1 . . . . . Recycling Unit Index 1 | . . . . . . 1 . . . . . Alert Level 1 | . . . . 1 . . . . . . . Locate Traps 3 | . 1 . . . . 1 . . . 1 . Dispatch Records 1 | . . . . . . 1 . . . . . Investigation Status 1 | . . . . . . 1 . . . . . Hauler Manifests 2 | . 1 . . . . 1 . . . . . Zone Layout 2 | . . . . 1 . 1 . . . . . Proto ID Catalog 2 | . . . 1 . 1 . . . . . . Fabricator Hacks 3 | . . . . . . . . . . . 3 Network Status 1 | . . . . . . . . . . . 1 Load Schematic 1 | . . . . . . . . . . . 1 Build 1 | . . . . . . . . . . . 1 Repair Station Hacks 2 | . . . . . . . . . . . 2 Scan Component 1 | . . . . . . . . . . . 1 Repair 1 | . . . . . . . . . . . 1 Recycling Unit Hacks 3 | . . . . . . . . . . . 3 Report Inventory 2 | . . . . . . . . . . . 2 Retrieve Components 1 | . . . . . . . . . . . 1 Scanalyzer 2 | . . . . . . . . . . . 2 Insert Component 1 | . . . . . . . . . . . 1 Analyze 1 | . . . . . . . . . . . 1 Garrison Access Hacks . | . . . . . . . . . . . . Unauthorized Hacks 9 | . . . . 1 . 5 . . . . 3 Terminals 2 | . . . . . . 2 . . . . . Botnet 2 | . . . . . . 2 . . . . . Fabricators . | . . . . . . . . . . . . Repair Stations . | . . . . . . . . . . . . Recycling Units 7 | . . . . 1 . 3 . . . . 3 Tunnel 1 | . . . . 1 . . . . . . . Fedlink 4 | . . . . . . 2 . . . . 2 Scrapoids 2 | . . . . . . 1 . . . . 1 Scanalyzers . | . . . . . . . . . . . . Garrison Access . | . . . . . . . . . . . . Data Cores Recovered 1 | . . . . . . . . . . 1 . Used . | . . . . . . . . . . . . Hacking Detections 21 | . 2 1 . . . 5 2 4 . 2 5 Full Trace Events 8 | . 1 . . . . 2 1 2 . . 2 Feedback Events . | . . . . . . . . . . . . Feedback Blocked . | . . . . . . . . . . . . Robot Schematics Acquired . | . . . . . . . . . . . . Robots Built . | . . . . . . . . . . . . Authchips . | . . . . . . . . . . . . Time . | . . . . . . . . . . . . Total Robot Build Rating . | . . . . . . . . . . . . Part Schematics Acquired 2 | . . . . . . . . . . . 2 Parts Built . | . . . . . . . . . . . . Authchips . | . . . . . . . . . . . . Time 128 | . . . . . . . . . . . 128 Total Part Build Rating . | . . . . . . . . . . . . Parts Repaired 1 | . . . . . . . . . . . 1 Time 99 | . . . . . . . . . . . 99 Parts Recycled . | . . . . . . . . . . . . Recycled Matter . | . . . . . . . . . . . . Retrieved Matter . | . . . . . . . . . . . . Retrieved Components 8 | . . . . . . . . . . . 8 Parts Scanalyzed 1 | . . . . . . . . . . . 1 Part Schematics Acquired 1 | . . . . . . . . . . . 1 Parts Damaged . | . . . . . . . . . . . . Bothacking | -11 -10 -10 -10 -9 -9 -6 -6 -6 -6 -6 -5 ------------ Run | Yrd Mat Min Sub Rec Scr Fac Ext Cet Arc Hub Fac Used RIF Installer . | . . . . . . . . . . . . Robots Hacked . | . . . . . . . . . . . . Non-combat . | . . . . . . . . . . . . Combat . | . . . . . . . . . . . . Robot Hacks Applied . | . . . . . . . . . . . . Relay Couplers Released 7 | . . . . . . . . . . . 7 Programmers 7 | . . . . . . . . . . . 7 Fabnet Peak Effective % . | . . . . . . . . . . . . Robots Rewired 16 | . . . 1 . . . 15 . . . . Allies Hacked 3 | . . . . . . 1 . . . . 2 Hacks Repelled . | . . . . . . . . . . . . Allies | -11 -10 -10 -10 -9 -9 -6 -6 -6 -6 -6 -5 -------- Run | Yrd Mat Min Sub Rec Scr Fac Ext Cet Arc Hub Fac Total Allies 40 | . . . 6 . . 5 19 5 . . 5 Largest Group 16 | . . . 4 3 1 5 16 16 7 5 5 Highest-Rated Group 774 | . . . 76 57 19 146 626 774 534 397 238 Highest-Rated Ally 159 | . . . 19 19 19 31 159 152 96 96 50 Total Orders 1 | . . . . . . . . 1 . . . STAY 1 | . . . . . . . . 1 . . . Ally Attacks 460 | . . . 22 19 . 61 118 119 32 21 68 Total Damage 10705 | . . . 406 332 . 855 3118 2668 1065 712 1549 Kills 72 | . . . 5 4 . 7 23 16 3 6 8 Allies Corrupted 4 | . . . . . . . . . . 2 2 Allies Melted 1 | . . . . . . . 1 . . . . Intel | -11 -10 -10 -10 -9 -9 -6 -6 -6 -6 -6 -5 ------- Run | Yrd Mat Min Sub Rec Scr Fac Ext Cet Arc Hub Fac Active Infowar (turns) 6830 | 127 968 959 1538 . 2054 1184 . . . . . Seismic 4776 | 127 968 959 1538 . . 1184 . . . . . ECM 2054 | . . . . . 2054 . . . . . . Robot Analysis Total 6 | . 1 . . . 5 . . . . . . Derelict Logs Recovered 9 | . . 1 3 . 5 . . . . . . Drone Launches . | . . . . . . . . . . . . Drone Recoveries . | . . . . . . . . . . . . Exploration | -11 -10 -10 -10 -9 -9 -6 -6 -6 -6 -6 -5 ------------- Run | Yrd Mat Min Sub Rec Scr Fac Ext Cet Arc Hub Fac Turns Passed 25286 | 207 1042 959 4958 1509 7219 2147 1330 1136 502 755 3522 Spaces Moved 10369 | 102 447 425 1835 554 2517 1303 768 546 163 367 1342 Core 11 | 11 . . . . . . . . . . . Treads 5173 | 91 447 425 1835 554 1821 . . . . . . Legs 5067 | . . . . . 578 1303 768 546 163 367 1342 Wheels 118 | . . . . . 118 . . . . . . Hover . | . . . . . . . . . . . . Flight . | . . . . . . . . . . . . Fastest Speed 50 | 50 160 160 240 260 195 110 110 110 180 110 110 Average Speed 209 | 148 160 219 251 260 284 117 110 173 180 174 184 Slowest Speed 545 | 160 160 240 320 260 545 350 112 180 180 180 330 Overloaded Moves 2 | . . . . . . . . . . . 2 Propulsion Burnouts . | . . . . . . . . . . . . Robots Hopped . | . . . . . . . . . . . . Potential Cave-ins 2 | . . . 2 . . . . . . . . Cave-ins Triggered . | . . . . . . . . . . . . Exploration Rate (%) 66 | 5 74 92 80 91 93 34 83 87 85 46 32 Regions Visited 11 Branch Regions 8 Pre-discovered Areas 8 | . . 1 3 1 2 1 . . . . . Known Exits Taken 2 | . . . 1 . . . . . . 1 . Unknown Exits Taken 9 | 1 1 1 . 1 1 1 1 1 1 . . Scrap Searched 24 | . . 3 12 . 9 . . . . . . Spaces Dug 58 | . . . 51 . . 7 . . . . . Terrain Destroyed 196 | . . . 87 . . 31 1 9 1 7 60 Melee 7 | . . . . . . 7 . . . . . Projectile 77 | . . . 9 . . 3 1 9 1 7 47 AOE 111 | . . . 78 . . 21 . . . . 12 Terrain Rammed . | . . . . . . . . . . . . Walls Destroyed . | . . . . . . . . . . . . Machines Disabled . | . . . . . . . . . . . . Actions | -11 -10 -10 -10 -9 -9 -6 -6 -6 -6 -6 -5 --------- Run | Yrd Mat Min Sub Rec Scr Fac Ext Cet Arc Hub Fac Total 12907 | 132 696 452 2054 618 2582 1727 1159 655 363 429 2040 Wait 1219 | . 193 15 52 57 9 181 150 27 183 21 331 Move 10358 | 101 446 424 1834 553 2516 1302 767 545 162 366 1342 Hop . | . . . . . . . . . . . . Pick Up 195 | 10 6 6 20 1 35 42 8 12 2 . 53 Fast Attach 47 | 1 . . 2 1 2 10 . . 3 5 23 Attach 67 | 6 . 1 1 . 2 17 8 2 . 1 29 Detach 2 | . . . 1 . . . . . . . 1 Swap 92 | . 1 2 22 . 3 17 4 12 3 2 26 Drop 163 | . 5 2 20 2 15 35 2 12 5 5 60 Fire 546 | 14 45 . 96 2 . 111 48 36 5 22 167 Melee 8 | . . . . . . 8 . . . . . Ram . | . . . . . . . . . . . . Kick 12 | . . . . . . 3 2 . . . 7 Crush 4 | . . 2 . 2 . . . . . . . Escape Stasis 12 | . . . . . . . 12 . . . . Rewire 156 | . . . 5 . . 1 150 . . . . Trap 3 | . . . 1 . . . . . . 1 1 Miscellaneous 23 | . . . . . . . 8 9 . 6 . Route ------- -11/Scrapyard -10/Materials (discovered 6 exits: [*Mat x3] / *Min x2 / *Sub) -10/Mines (discovered 2 exits: [*Mat] / *Sub) -10/Subcaves (discovered 3 exits: [*Mat x2] / *Rec) -9/Recycling (discovered 2 exits: [*Fac] / *Scr) -9/Scraptown (discovered 2 exits: *Fac x2) -6/Factory (discovered 7 exits: *Fac x4 / [*Low] / *Ext x2) -6/Extension (discovered 3 exits: *Fac x2 / *Cet) -6/Cetus (discovered 3 exits: *Fac x2 / *Arc) -6/Archives (discovered 3 exits: *Fac / *Hub x2) -6/Hub_04(d) -5/Factory (discovered 1 exit: [*Upp]) History --------- Turn | Location | Event 21 | -11/Scrapyard | Discovered new exit (range 16) 208 | -11/Scrapyard | Entered Materials 304 | -10/Materials | Build established: Mutant 349 | -10/Materials | Discovered new exit (range 14) 485 | -10/Materials | Discovered new exit (range 4) 541 | -10/Materials | Discovered new exit (range 3) 785 | -10/Materials | Discovered new exit (range 7) 997 | -10/Materials | Discovered new exit (range 8) 1206 | -10/Materials | Discovered new exit (range 16) 1250 | -10/Materials | Entered Mines 1381 | -10/Mines | Found a hidden stash of uninstalled traps 1474 | -10/Mines | Learned 2 Materials zone layouts 1501 | -10/Mines | Learned location of Storage (-9) 1748 | -10/Mines | Received a Rocket Launcher from a helpful Derelict 1968 | -10/Mines | Discovered new exit (range 6) 2197 | -10/Mines | Discovered new exit (range 6) 2209 | -10/Mines | Entered Subcaves 2308 | -10/Subcaves | Visited Clippyterm 2315 | -10/Subcaves | Identified exit to Recycling 2315 | -10/Subcaves | Learned Research security intel 2351 | -10/Subcaves | Discovered new exit (range 15) 2530 | -10/Subcaves | Learned Materials stockpile data 3142 | -10/Subcaves | Core integrity fell below 50% 3176 | -10/Subcaves | Build established: Derelict-Mutant 3292 | -10/Subcaves | Learned location of Zion (-7) 3292 | -10/Subcaves | Met a Zionite searching for "candidates" 3674 | -10/Subcaves | Discovered new exit (range 13) 3697 | -10/Subcaves | Shifting Twisted Machinery released Mak. Kinetic Plating 3706 | -10/Subcaves | Shifting Twisted Machinery released Sub. Power Source 4292 | -10/Subcaves | Learned location of Mines (-10) 4410 | -10/Subcaves | Shifting Twisted Machinery released Spk. Treads 4427 | -10/Subcaves | Core integrity fell below 20% 4462 | -10/Subcaves | Shifting Twisted Machinery released Mak. System Restoration Module 4515 | -10/Subcaves | Visited triangular shrine 4532 | -10/Subcaves | Found Prototype Device 4532 | -10/Subcaves | Identified V3-11A's Pendant 4537 | -10/Subcaves | Befriended Subdweller 4655 | -10/Subcaves | Ambushed by Subdwellers from Twisted Machinery 4657 | -10/Subcaves | Befriended Subdweller 4657 | -10/Subcaves | Befriended Subdweller 4769 | -10/Subcaves | Visited 4L-MR0's lab 4797 | -10/Subcaves | Found Arachnoskeleton 4907 | -10/Subcaves | Befriended Subdweller 6555 | -10/Subcaves | Ambushed by Subdweller buried in earth 6557 | -10/Subcaves | Befriended Subdweller 7167 | -10/Subcaves | Entered Recycling 7167 | -9/Recycling | Accompanied by 3 allies 7610 | -9/Recycling | Discovered new exit (range 15) 8608 | -9/Recycling | Scanned before Scraplab entrance 8644 | -9/Recycling | Entered Scraplab 8668 | -9/Recycling | Discovered new exit (range 2) 8676 | -9/Recycling | Entered Scraptown 8676 | -9/Scraptown | Accompanied by 1 ally 8874 | -9/Scraptown | Delivered V3-11A's Pendant to T0-NE2 in exchange for information 9217 | -9/Scraptown | Scanned Subdweller tech in exchange for log data 9222 | -9/Scraptown | Learned Factory emergency access door positions 9225 | -9/Scraptown | Learned location of Armory (-3) 9228 | -9/Scraptown | Learned location of Quarantine (-3) 9230 | -9/Scraptown | Learned Factory non-interactive machine intel 9233 | -9/Scraptown | Learned Factory garrison access intel 9274 | -9/Scraptown | Discovered new exit (range 3) 9456 | -9/Scraptown | Visited IN-MT5's Study 9508 | -9/Scraptown | Visited Spacefarers 9713 | -9/Scraptown | Visited TADAMA 9734 | -9/Scraptown | Visited Cave Peace 10189 | -9/Scraptown | Visited Bundlers 10319 | -9/Scraptown | Visited Cyclists 10392 | -9/Scraptown | Visited Symbiants 10452 | -9/Scraptown | Visited UFD Registry 10452 | -9/Scraptown | Registered with UFD as "Wireroller" 10517 | -9/Scraptown | Visited Science Guys 10857 | -9/Scraptown | Visited Abandonware Association 10912 | -9/Scraptown | Learned abandonware demo "ERRANTS.EXE" 10969 | -9/Scraptown | Visited LU-1G1's Boring Crew 11107 | -9/Scraptown | Delivered Scrap Shield to a Scientist 11252 | -9/Scraptown | Visited DA-N13 Charitable Foundation 11263 | -9/Scraptown | Found DCF Scrap (30 items) 11330 | -9/Scraptown | Visited Analyses Database 11388 | -9/Scraptown | Visited Supply Room 11525 | -9/Scraptown | Visited Scrapoid Pod Storage 11642 | -9/Scraptown | Visited Observation Area 11744 | -9/Scraptown | Visited Research Penetration Think Tank 11853 | -9/Scraptown | Found Scrap Suit 11937 | -9/Scraptown | Discovered new exit (range 3) 12366 | -9/Scraptown | Found Scrapoid Pod 12416 | -9/Scraptown | Visited Chapter 10 12897 | -9/Scraptown | Entered Cyclist Reading Room 13110 | -9/Scraptown | Guru changed UFD alias to "Gaussrider" 14929 | -9/Scraptown | Build established: Hauler-Mutant 15773 | -9/Scraptown | Met Optimus 15773 | -9/Scraptown | Accepted into 0bPrime 15895 | -9/Scraptown | Entered Factory 15895 | -6/Factory | Accompanied by 1 ally 15895 | -6/Factory | Evolved 8 slots: Propulsion x2, Utility x5, Weapon x1 15897 | -6/Factory | Loaded intel: 278 non-interactive machine locations 15898 | -6/Factory | Loaded intel: 4 garrison access locations 15899 | -6/Factory | Attached Arachnoskeleton, gained temporary slots: Propulsion x3 15975 | -6/Factory | Discovered new exit (range 5) 16230 | -6/Factory | Discovered new exit (range 12) 16556 | -6/Factory | Discovered new exit (range 16) 16628 | -6/Factory | Loaded intel: 8 recycling unit locations 16638 | -6/Factory | Build established: Gunner 16800 | -6/Factory | Scrapoids reinforcements arrived? 16912 | -6/Factory | Spotted B-75 Beast 16948 | -6/Factory | Destroyed B-75 Beast 17271 | -6/Factory | Destroyed 10 combat bots 17285 | -6/Factory | Discovered new exit (range 4) 17302 | -6/Factory | Learned location of Protoforge (-3) 17450 | -6/Factory | Identified exit to Factory 17621 | -6/Factory | Build established: Scavenger-Gunner 17645 | -6/Factory | First assault squad dispatched 17965 | -6/Factory | Discovered new exit (range 5) 18042 | -6/Factory | Entered Extension 18084 | -6/Extension | Rescued a captive Derelict 18219 | -6/Extension | Rescued A7 18341 | -6/Extension | Energy Cycler disabled 18342 | -6/Extension | Rescued a captive Derelict 18342 | -6/Extension | Rescued a captive Derelict 18343 | -6/Extension | Rescued a captive Derelict 18343 | -6/Extension | Rescued a captive Derelict 18343 | -6/Extension | Rescued a captive Derelict 18346 | -6/Extension | Rescued a captive Derelict 18347 | -6/Extension | Rescued a captive Derelict 18412 | -6/Extension | Build established: Gunner 18792 | -6/Extension | Build established: Commander-Gunner 18888 | -6/Extension | Spotted B-75 Beast 18902 | -6/Extension | Allies destroyed B-75 Beast 18902 | -6/Extension | Spotted B-75 Beast 18904 | -6/Extension | Discovered exit to Factory (range 15) 18917 | -6/Extension | Destroyed B-75 Beast 19305 | -6/Extension | Discovered exit to Factory (range 10) 19306 | -6/Extension | Discovered new exit (range 6) 19372 | -6/Extension | Entered Cetus 19372 | -6/Cetus | Accompanied by 16 allies (A7) 19377 | -6/Cetus | Acquired a Cetus Manufacturing Module code from A7 19387 | -6/Cetus | Spotted Cetus Guard 19388 | -6/Cetus | Spotted Cetus Guard 19390 | -6/Cetus | Spotted Cetus Guard 19390 | -6/Cetus | Spotted Cetus Guard 19408 | -6/Cetus | Destroyed Cetus Guard 19411 | -6/Cetus | Allies destroyed Cetus Guard 19412 | -6/Cetus | Allies destroyed Cetus Guard 19417 | -6/Cetus | Destroyed Cetus Guard 19443 | -6/Cetus | Lost 3 allies 19540 | -6/Cetus | Discovered new exit (range 15) 19575 | -6/Cetus | Spotted Cetus Guard 19575 | -6/Cetus | Spotted Cetus Guard 19580 | -6/Cetus | Spotted Cetus Guard 19585 | -6/Cetus | Destroyed Cetus Guard 19589 | -6/Cetus | Spotted Cetus Guard 19592 | -6/Cetus | Core integrity fell below 50% 19600 | -6/Cetus | Allies destroyed Cetus Guard 19602 | -6/Cetus | Allies destroyed Cetus Guard 19614 | -6/Cetus | Allies destroyed Cetus Guard 19623 | -6/Cetus | Discovered exit to Factory (range 16) 19629 | -6/Cetus | Lost 7 allies 19634 | -6/Cetus | Met Revision 17 19858 | -6/Cetus | Escorted A7 to Cetus Mainframe 19871 | -6/Cetus | Started Cetus Manufacturing Module 19896 | -6/Cetus | Manufactured an Enhanced Grunt 19909 | -6/Cetus | Build established: Scavenger-Gunner 19921 | -6/Cetus | Manufactured an Enhanced Grunt 19946 | -6/Cetus | Manufactured an Enhanced Grunt 19971 | -6/Cetus | Manufactured an Enhanced Grunt 19996 | -6/Cetus | Manufactured an Enhanced Grunt 20122 | -6/Cetus | Security sweep announced 20151 | -6/Cetus | Discovered exit to Factory (range 15) 20278 | -6/Cetus | Build established: Commander-Gunner 20411 | -6/Cetus | Murdered A7 20419 | -6/Cetus | Extracted ID and sensor layout for unrecognized location from A7's data core 20508 | -6/Cetus | Entered Archives 20508 | -6/Archives | Accompanied by 7 allies 20557 | -6/Archives | Discovered new exit (range 16) 20575 | -6/Archives | Lost 4 allies 20575 | -6/Archives | Discovered new exit (range 16) 20579 | -6/Archives | System corruption reached 10% 20642 | -6/Archives | Unable to access archive contents 20660 | -6/Archives | Unable to access archive contents 20678 | -6/Archives | Unable to access archive contents 20719 | -6/Archives | Unable to access archive contents 20751 | -6/Archives | Discovered exit to Factory (range 15) 20835 | -6/Archives | Build established: Scavenger-Gunner 21010 | -6/Archives | Entered Hub_04(d) 21010 | -6/Hub_04(d) | Accompanied by 5 allies 21679 | -6/Hub_04(d) | Network Hub disabled 21703 | -6/Hub_04(d) | Spotted Lightning 21710 | -6/Hub_04(d) | Spotted Lightning 21710 | -6/Hub_04(d) | Spotted Lightning 21743 | -6/Hub_04(d) | Spotted Lightning 21744 | -6/Hub_04(d) | Lost 3 allies 21751 | -6/Hub_04(d) | Discovered exit to Factory (range 8) 21752 | -6/Hub_04(d) | Spotted Lightning 21762 | -6/Hub_04(d) | Spotted Lightning 21765 | -6/Hub_04(d) | Entered Factory 21765 | -5/Factory | Evolved 2 slots: Utility x1, Weapon x1 21795 | -5/Factory | Lost 9 parts (1p4u4w) 21951 | -5/Factory | Scrapoid reinforcements arrived 22498 | -5/Factory | Garrison activated, responded to threat 22602 | -5/Factory | Build established: Scavenger-Tank 22834 | -5/Factory | Loaded intel: 7 recycling unit locations 22842 | -5/Factory | Garrison activated, responded to threat 23253 | -5/Factory | Garrison activated, responded to threat 23301 | -5/Factory | Discovered new exit (range 10) 23865 | -5/Factory | First assault squad dispatched 24406 | -5/Factory | Spotted B-75 Beast 24478 | -5/Factory | Allied Derelicts emerged from ambush trap array 24486 | -5/Factory | P-70 Sage assimilated allied EI-7IO(g) 24500 | -5/Factory | System corruption reached 10% 24814 | -5/Factory | Build established: Scavenger-Gunner 25067 | -5/Factory | Garrison activated, responded to threat 25141 | -5/Factory | Repaired Adv. Variable Charge Gun 25147 | -5/Factory | Core integrity fell below 50% 25164 | -5/Factory | Lost 3 parts (2u1w) 25287 | -5/Factory | Self-destructed Last Messages --------------- 25270_ Connecting with Fabricator... >>Load(Imp. Thunder Leg) Uploading Imp. Thunder Leg schematic... Loaded successfully: Imp. Thunder Leg Rating: 8 Time: 128 Initiate build sequence. >>Build Building Imp. Thunder Leg... ETC: 128 25270_ ALERT: Unauthorized use of fabrication network. Dispatching investigation squad. 25275_ System corrupted: Component data lost. 25276_ Slug penetrates Y-64 Sentinel. 25279_ Penetrated by Slug. 25279_ Assembly Bed disabled. 25281_ Penetrated by Slug. 25284_ Slug penetrates G-50 Soldier. 25285_ Penetrated by Slug. Map ----- +----------------------------------------------------+ | ?# """" ## # "" / ???? | | ?# """" ## # """ # ???? | | ?# """" ## [ # """" # ########??????? | | ?# ######### """ # #?????????????? | | ?# #???????# "R[ # #?????????????? | | ?# #???????# " " # #?????????????? | | ?# #???????# !! # #???"?????????? | | ?########???????############## #???""""""????? | | ????????????????????# #??##??#% #??""""""" #? | | ????????????????????##???????# % #??""""""" #? | | ?????????????????????????????# #? #? | | ?????????????????????????????# % #? ""?? | | ?????????????????????????????# # ""#? | | ?????????????????????????????# # === G#? | | ?????????????????????????????#% s === ""?? | | ?????????????????????????????# g# == ""?? | | ?????????????##########??????# s # #? | | ?????????????# """" ########YY k##############? | | ?????????????# "F " # #??????? | | ?????????????# # Y #??????? | | ?????????????# """""" # ???? | | ?????????????# """""" + #####??? | | ?????????????# """"" # #??????? | | ?????????????# """""" # #### ######## #??????? | | ?????????????# # #??# #????????#??????? | | ?????????????# [ [# @ #??# #???????????????? | | ?????????????########## u#??#+#???????????????? | | ??????????????????????# #????????????????????? | | ??????????????????????# +????????????????????? | | ??????????????????????# #????????????????????? | | ??????????????????????# #????????????????????? | | ??????????????????????#b #????????????????????? | | ??????????????????????# #????????????????????? | | ??????????????????????#g #????????????????????? | | ??????????????????????/u k#????????????????????? | | ??????????????????????# g #????????????????????? | | ??????????????????????# #????????????????????? | | ??????????????????????# #????????????????????? | | ??????????????????????# #????????????????????? | | ??????????????????????# #????????????????????? | | ??????????????????????? ?????????????????????? | | ?????????????????????????????????????????????????? | | ?????????????????????????????????????????????????? | | ?????????????????????????????????????????????????? | | ?????????????????????????????????????????????????? | | ?????????????????????????????????????????????????? | | ?????????????????????????????????????????????????? | | ?????????????????????????????????????????????????? | | ?????????????????????????????????????????????????? | | ?????????????????????????????????????????????????? | +----------------------------------------------------+ Best States ------------- Heat Dissipation 123 Energy Generation 19 Energy Capacity 315 Matter Stores 300 Matter Capacity 300 Sight Range 16 Terrain Scan Density 10 ECM Strength 2 Base Temperature (-) 150 Armor Coverage 825 Weapon Cycling 15 Evasion (%) 55 Targeting Accuracy 16 Recoil Reduction 2 Kinecelleration 40 Item Schematics ----------------- Hyp. Gauss Rifle | -5/Factory | Scanalyzed Imp. Thunder Leg | -5/Factory | Hacked Robot Schematics ------------------ None Fabricated ------------ Nothing Repaired ---------- Adv. Variable Charge Gun | 14% | -5/Factory Alien Tech Used ----------------- None Achievements -------------- Overkill root@ Challenges ------------ None Game ------ Seed BackupDeepInsulator Manual? 0 Play Time 03:23:42 Cumulative 90.7 hours Start 2025.07.12 @ 14:45:38 End 2025.07.14 @ 20:02:12 Sessions 3 Manual Loads 0 Difficulty Rogue Special Mode None Game No. 147 Rogue 147 Adventurer 0 Explorer 0 Win Type - Total 1 Types 1/0/0/0/0/0/0/0/0/0 Lore% 62 Gallery% 51 Achievement% 46 Wizard Run 0 Options --------- Layout 0 ASCII 0 Keyboard 0 Movement Mouse Keybinds 0 Fullscreen 1 Font 16/SmallcapsGlow Map View 75x55 Zoom Use 0% Tactical HUD 1 Map Filters NONE Filters NONE Steam 1 RUN: 6103731e-6431-49b2-b56d-6aada1603344